{"text_format":"3","workbook":"xlsx","n_sheets":7,"sheets":["00_Menu","Instruções","02_Contratos","03_Eventos","04_Apoio","05_Calculos","06_Relatorios"],"not_rendered":{"charts":2,"images":6,"macros":1},"read":"whole","date_system":"1900"}

{"sheet":"00_Menu","index":0,"n_rows":16,"n_cols":8,"rows_kept":16,"hidden":true}
{"$rows_empty":8}
[null,null,"CONTROLE DE CONTRATOS E RENOVACOES"]
[]
[null,null,"INDICADORES GERAIS",{"$nulls":4},"ORIENTACOES RAPIDAS"]
[null,null,"Total de Contratos",{"$f":"'05_Calculos'!D10","v":1},{"$nulls":3},"1. Cadastre contratos em 02_Contratos"]
[null,null,"Vigentes",{"$f":"'05_Calculos'!D11","v":1},{"$nulls":3},"2. Registre eventos em 03_Eventos"]
[null,null,"Vencidos",{"$f":"'05_Calculos'!D12","v":0},{"$nulls":3},"3. Consulte alertas em 06_Relatorios"]
[null,null,"Vencem em 30 dias",{"$f":"'05_Calculos'!D13","v":0},{"$nulls":3},"4. Use os botoes no topo da pagina para navegar"]
[null,null,"Reajustes em 30 dias",{"$f":"'05_Calculos'!D14","v":0},{"$nulls":3},"5. Nao edite as abas 05_Calculos"]

{"sheet":"Instruções","index":1,"n_rows":47,"n_cols":4,"rows_kept":47}
["http://authenticator.sapphirebusinesstech.com:8080/access/v1/validate"]
["123456789"]
["contact@sapphirebusinesstech.com",null,null,"Any use for this file other than sample using and technical analysis without authorization is stricly prohibited and protected by copyright"]
[{"$nulls":3},"Qualquer uso desse arquivo sem autorização outro que uso de exemplo e análise técnica é extritamente proibida e protegida por direitos autorais."]
[200,null,null,"Cualquier uso de este archivo sin autorización que no sea para fines de ejemplo o análisis técnico está estrictamente prohibido y está protegido por derechos de autor."]
[]
[{"$f":"IF(A12=\"\",0,TODAY()-A12)","v":0}]
[]
[]
[]
[]
[null,null,"MANUAL DE USO — CONTROLE DE CONTRATOS E RENOVACOES"]
[]
[null,null,"1. OBJETIVO DA PLANILHA"]
[null,null,"Esta planilha permite controlar de forma centralizada:"]
[null,null,"  • Vencimento de contratos"]
[null,null,"  • Renovacoes e aditivos"]
[null,null,"  • Reajustes contratuais"]
[null,null,"  • Multas contratuais"]
[null,null,"  • Historico operacional de eventos"]
[]
[null,null,"2. COMO USAR"]
[null,null,"  1. Cadastre o contrato na aba 02_Contratos. Preencha apenas os campos manuais."]
[null,null,"  2. NAO altere colunas de formula (Vigencia, Dias p/ Vencer, Status, Alerta, Multa Estimada)."]
[null,null,"  3. Quando houver renovacao ou reajuste, registre na aba 03_Eventos."]
[null,null,"  4. Apos registrar o evento, atualize os campos Data Fim, Prox. Reajuste e Valor Contrato em 02_Contratos."]
[null,null,"  5. Consulte os alertas e indicadores na aba 06_Relatorios."]
[null,null,"  6. Use os botoes no topo da pagina para navegar entre as abas."]
[]
[null,null,"3. SIGNIFICADO DOS ALERTAS"]
[null,null,"  OK","Sem acao imediata necessaria."]
[null,null,"  Acompanhar","Demanda atencao em curto prazo (vencimento ou reajuste proximo)."]
[null,null,"  Critico","Acao imediata necessaria (contrato vencido ou reajuste em atraso)."]
[]
[null,null,"4. O QUE NAO FAZER"]
[null,null,"  • Nao apagar formulas nas colunas calculadas."]
[null,null,"  • Nao escrever por cima de listas suspensas com valores livres."]
[null,null,"  • Nao alterar a aba 05_Calculos."]
[null,null,"  • Nao mover ou reordenar colunas manualmente."]
[null,null,"  • Nao excluir linhas de cabecalho das tabelas."]
[]
[null,null,"5. CONVENCOES"]
[null,null,"  • Datas: dd/mm/aaaa"]
[null,null,"  • Percentuais: formato % (ex.: 10%)"]
[null,null,"  • Valores monetarios: R$ (ex.: R$ 120.000,00)"]
[null,null,"  • Um contrato por linha em 02_Contratos"]
[null,null,"  • Um evento por linha em 03_Eventos"]

{"sheet":"02_Contratos","index":2,"n_rows":10,"n_cols":36,"rows_kept":10,"hidden":true}
{"$rows_empty":8}
[null,null,"ID Contrato","Tipo Parte","Razao Social","Documento","Nro Contrato","Objeto","Categoria","Responsavel Interno","Area","Status Cadastro","Data Inicio","Data Fim","Vigencia Dias","Dias p/ Vencer","Prazo Aviso (dias)","Data Limite Aviso","Dias p/ Aviso","Renovacao","Indice Reajuste","Periodicidade Reajuste (meses)","Prox. Reajuste","Dias p/ Reajuste","Valor Contrato","Possui Multa?","Tipo Multa","Unid. Multa","Valor Multa Informado","Multa Estimada (R$)","Status Contrato","Status Aviso","Status Reajuste","Alerta Geral","Observacoes","Ult. Atualizacao"]
[null,null,"CTR-0001","Cliente","Empresa Exemplo Ltda","12.345.678/0001-90","CONT-2025-001","Prestacao de servicos de TI","Servico","Ana Silva","TI","Ativo","2025-01-01","2027-01-01",{"$f":"IF(OR(tbContratos[[#This Row],[Data Inicio]]=\"\",tbContratos[[#This Row],[Data Fim]]=\"\"),\"\",tbContratos[[#This Row],[Data Fim]]-tbContratos[[#This Row],[Data Inicio]])","v":730},{"$f":"IF(tbContratos[[#This Row],[Data Fim]]=\"\",\"\",tbContratos[[#This Row],[Data Fim]]-TODAY())","v":141},60,{"$f":"IF(OR(tbContratos[[#This Row],[Data Fim]]=\"\",tbContratos[[#This Row],[Prazo Aviso (dias)]]=\"\"),\"\",tbContratos[[#This Row],[Data Fim]]-tbContratos[[#This Row],[Prazo Aviso (dias)]])","v":"2026-11-02"},{"$f":"IF(tbContratos[[#This Row],[Data Limite Aviso]]=\"\",\"\",tbContratos[[#This Row],[Data Limite Aviso]]-TODAY())","v":81},"Automatica","IPCA",12,"2026-01-01",{"$f":"IF(tbContratos[[#This Row],[Prox. Reajuste]]=\"\",\"\",tbContratos[[#This Row],[Prox. Reajuste]]-TODAY())","v":-224},{"v":120000,"d":"R£ 120,000.00"},"Sim","Rescisoria","%",{"v":0.1,"d":"10%"},{"$f":"IF(tbContratos[[#This Row],[Possui Multa?]]<>\"Sim\",0,IF(tbContratos[[#This Row],[Unid. Multa]]=\"%\",tbContratos[[#This Row],[Valor Contrato]]*tbContratos[[#This Row],[Valor Multa Informado]],tbContratos[[#This Row],[Valor Multa Informado]]))","v":{"v":12000,"d":"R£ 12,000.00"}},{"$f":"IF(tbContratos[[#This Row],[Data Fim]]=\"\",\"Sem data\",IF(tbContratos[[#This Row],[Dias p/ Vencer]]<0,\"Vencido\",IF(tbContratos[[#This Row],[Dias p/ Vencer]]<=30,\"Vence em ate 30 dias\",IF(tbContratos[[#This Row],[Dias p/ Vencer]]<=60,\"Vence em ate 60 dias\",\"Vigente\"))))","v":"Vigente"},{"$f":"IF(tbContratos[[#This Row],[Data Limite Aviso]]=\"\",\"Sem aviso\",IF(tbContratos[[#This Row],[Dias p/ Aviso]]<0,\"Aviso vencido\",IF(tbContratos[[#This Row],[Dias p/ Aviso]]<=15,\"Aviso em ate 15 dias\",\"Dentro do prazo\")))","v":"Dentro do prazo"},{"$f":"IF(tbContratos[[#This Row],[Prox. Reajuste]]=\"\",\"Sem reajuste\",IF(tbContratos[[#This Row],[Dias p/ Reajuste]]<0,\"Reajuste em atraso\",IF(tbContratos[[#This Row],[Dias p/ Reajuste]]<=30,\"Reajuste em ate 30 dias\",\"Em dia\")))","v":"Reajuste em atraso"},{"$f":"IF(OR(tbContratos[[#This Row],[Status Contrato]]=\"Vencido\",tbContratos[[#This Row],[Status Reajuste]]=\"Reajuste em atraso\"),\"Critico\",IF(OR(tbContratos[[#This Row],[Status Contrato]]=\"Vence em ate 30 dias\",tbContratos[[#This Row],[Status Aviso]]=\"Aviso em ate 15 dias\",tbContratos[[#This Row],[Status Reajuste]]=\"Reajuste em ate 30 dias\"),\"Acompanhar\",\"OK\"))","v":"Critico"},null,"2026-05-03"]

{"sheet":"03_Eventos","index":3,"n_rows":10,"n_cols":14,"rows_kept":10,"hidden":true}
{"$rows_empty":8}
[null,null,"ID Evento","Data Evento","ID Contrato","Tipo Evento","Descricao Evento","Valor Anterior","Valor Novo","Variacao Valor","Nova Data Fim","Documento Ref.","Responsavel Registro","Observacoes"]
[null,null,"EVT-0001","2026-01-01","CTR-0001","Reajuste","Reajuste anual IPCA 4,5%",{"v":115000,"d":"R£ 115,000.00"},{"v":120000,"d":"R£ 120,000.00"},{"$f":"IF(OR(tbEventos[[#This Row],[Valor Anterior]]=\"\",tbEventos[[#This Row],[Valor Novo]]=\"\"),\"\",tbEventos[[#This Row],[Valor Novo]]-tbEventos[[#This Row],[Valor Anterior]])","v":{"v":5000,"d":"R£ 5,000.00"}},null,"Aditivo n.2","Ana Silva"]

{"sheet":"04_Apoio","index":4,"n_rows":17,"n_cols":19,"rows_kept":17,"hidden":true}
{"$rows_empty":8}
[null,null,"Tipo Parte",null,"Categoria",null,"Status Cadastro",null,"Renovacao",null,"Indice Reajuste",null,"Tipo Multa",null,"Unid. Multa",null,"Responsavel Interno",null,"Area"]
[null,null,"Cliente",null,"Servico",null,"Ativo",null,"Automatica",null,"IPCA",null,"Rescisoria",null,"R$",null,"Ana Silva",null,"Financeiro"]
[null,null,"Fornecedor",null,"Locacao",null,"Suspenso",null,"Manual",null,"IGP-M",null,"Atraso",null,"%",null,"Carlos Souza",null,"Compras"]
[{"$nulls":4},"Fornecimento",null,"Encerrado",null,"Nao se aplica",null,"INPC",null,"Inadimplencia",{"$nulls":3},"Fernanda Lima",null,"Comercial"]
[{"$nulls":4},"Licenca",{"$nulls":5},"Fixo",null,"Descumprimento",{"$nulls":3},"Ricardo Alves",null,"Juridico"]
[{"$nulls":4},"Manutencao",{"$nulls":5},"Sem reajuste",null,"Nao se aplica",{"$nulls":3},"Juliana Costa",null,"TI"]
[{"$nulls":4},"Consultoria",{"$nulls":13},"RH"]
[{"$nulls":4},"Obra",{"$nulls":13},"Operacoes"]
[{"$nulls":4},"Seguro"]

{"sheet":"05_Calculos","index":5,"n_rows":26,"n_cols":11,"rows_kept":26,"hidden":true}
{"$rows_empty":8}
[null,null,"Indicador","Valor",null,"Tipo Parte","Qtd Contratos","Valor Total","Qtd Vencidos"]
[null,null,"Total Contratos",{"$f":"COUNTA(tbContratos[ID Contrato])","v":1},null,"Cliente",{"$f":"COUNTIF(tbContratos[Tipo Parte],F10)","v":1},{"$f":"SUMIFS(tbContratos[Valor Contrato],tbContratos[Tipo Parte],F10)","v":{"v":120000,"d":"R£ 120,000.00"}},{"$f":"COUNTIFS(tbContratos[Tipo Parte],F10,tbContratos[Status Contrato],\"Vencido\")","v":0}]
[null,null,"Contratos Vigentes",{"$f":"COUNTIF(tbContratos[Status Contrato],\"Vigente\")","v":1},null,"Fornecedor",{"$f":"COUNTIF(tbContratos[Tipo Parte],F11)","v":0},{"$f":"SUMIFS(tbContratos[Valor Contrato],tbContratos[Tipo Parte],F11)","v":{"v":0,"d":"R£ 0.00"}},{"$f":"COUNTIFS(tbContratos[Tipo Parte],F11,tbContratos[Status Contrato],\"Vencido\")","v":0}]
[null,null,"Contratos Vencidos",{"$f":"COUNTIF(tbContratos[Status Contrato],\"Vencido\")","v":0}]
[null,null,"Vencem em ate 30 dias",{"$f":"COUNTIFS(tbContratos[Dias p/ Vencer],\">=0\",tbContratos[Dias p/ Vencer],\"<=30\")","v":0}]
[null,null,"Reajustes em ate 30 dias",{"$f":"COUNTIFS(tbContratos[Dias p/ Reajuste],\">=0\",tbContratos[Dias p/ Reajuste],\"<=30\")","v":0}]
[null,null,"Avisos em ate 15 dias",{"$f":"COUNTIFS(tbContratos[Dias p/ Aviso],\">=0\",tbContratos[Dias p/ Aviso],\"<=15\")","v":0}]
[null,null,"Valor Total Contratado",{"$f":"SUM(tbContratos[Valor Contrato])","v":{"v":120000,"d":"R£ 120,000.00"}}]
[null,null,"Multa Estimada Total",{"$f":"SUM(tbContratos[Multa Estimada (R$)])","v":{"v":12000,"d":"R£ 12,000.00"}}]
[]
[]
[null,null,"Responsavel","Qtd Contratos","Vencem em ate 30 dias","Reajustes em ate 30 dias",null,"Mes Num","Mes Referencia","Contratos a Vencer","Reajustes Previstos"]
[null,null,"Ana Silva",{"$f":"COUNTIF(tbContratos[Responsavel Interno],C21)","v":1},{"$f":"COUNTIFS(tbContratos[Responsavel Interno],C21,tbContratos[Dias p/ Vencer],\">=0\",tbContratos[Dias p/ Vencer],\"<=30\")","v":0},{"$f":"COUNTIFS(tbContratos[Responsavel Interno],C21,tbContratos[Dias p/ Reajuste],\">=0\",tbContratos[Dias p/ Reajuste],\"<=30\")","v":0},null,0,{"$f":"DATE(YEAR(TODAY()),MONTH(TODAY())+H21,1)","v":"2026-08-01"},{"$f":"COUNTIFS(tbContratos[Data Fim],\">=\"&I21,tbContratos[Data Fim],\"<\"&DATE(YEAR(I21),MONTH(I21)+1,1))","v":0},{"$f":"COUNTIFS(tbContratos[Prox. Reajuste],\">=\"&I21,tbContratos[Prox. Reajuste],\"<\"&DATE(YEAR(I21),MONTH(I21)+1,1))","v":0}]
[null,null,"Carlos Souza",{"$f":"COUNTIF(tbContratos[Responsavel Interno],C22)","v":0},{"$f":"COUNTIFS(tbContratos[Responsavel Interno],C22,tbContratos[Dias p/ Vencer],\">=0\",tbContratos[Dias p/ Vencer],\"<=30\")","v":0},{"$f":"COUNTIFS(tbContratos[Responsavel Interno],C22,tbContratos[Dias p/ Reajuste],\">=0\",tbContratos[Dias p/ Reajuste],\"<=30\")","v":0},null,1,{"$f":"DATE(YEAR(TODAY()),MONTH(TODAY())+H22,1)","v":"2026-09-01"},{"$f":"COUNTIFS(tbContratos[Data Fim],\">=\"&I22,tbContratos[Data Fim],\"<\"&DATE(YEAR(I22),MONTH(I22)+1,1))","v":0},{"$f":"COUNTIFS(tbContratos[Prox. Reajuste],\">=\"&I22,tbContratos[Prox. Reajuste],\"<\"&DATE(YEAR(I22),MONTH(I22)+1,1))","v":0}]
[null,null,"Fernanda Lima",{"$f":"COUNTIF(tbContratos[Responsavel Interno],C23)","v":0},{"$f":"COUNTIFS(tbContratos[Responsavel Interno],C23,tbContratos[Dias p/ Vencer],\">=0\",tbContratos[Dias p/ Vencer],\"<=30\")","v":0},{"$f":"COUNTIFS(tbContratos[Responsavel Interno],C23,tbContratos[Dias p/ Reajuste],\">=0\",tbContratos[Dias p/ Reajuste],\"<=30\")","v":0},null,2,"2026-10-01",{"$f":"COUNTIFS(tbContratos[Data Fim],\">=\"&I23,tbContratos[Data Fim],\"<\"&DATE(YEAR(I23),MONTH(I23)+1,1))","v":0},{"$f":"COUNTIFS(tbContratos[Prox. Reajuste],\">=\"&I23,tbContratos[Prox. Reajuste],\"<\"&DATE(YEAR(I23),MONTH(I23)+1,1))","v":0}]
[null,null,"Ricardo Alves",{"$f":"COUNTIF(tbContratos[Responsavel Interno],C24)","v":0},{"$f":"COUNTIFS(tbContratos[Responsavel Interno],C24,tbContratos[Dias p/ Vencer],\">=0\",tbContratos[Dias p/ Vencer],\"<=30\")","v":0},{"$f":"COUNTIFS(tbContratos[Responsavel Interno],C24,tbContratos[Dias p/ Reajuste],\">=0\",tbContratos[Dias p/ Reajuste],\"<=30\")","v":0},null,3,"2026-11-01",{"$f":"COUNTIFS(tbContratos[Data Fim],\">=\"&I24,tbContratos[Data Fim],\"<\"&DATE(YEAR(I24),MONTH(I24)+1,1))","v":0},{"$f":"COUNTIFS(tbContratos[Prox. Reajuste],\">=\"&I24,tbContratos[Prox. Reajuste],\"<\"&DATE(YEAR(I24),MONTH(I24)+1,1))","v":0}]
[null,null,"Juliana Costa",{"$f":"COUNTIF(tbContratos[Responsavel Interno],C25)","v":0},{"$f":"COUNTIFS(tbContratos[Responsavel Interno],C25,tbContratos[Dias p/ Vencer],\">=0\",tbContratos[Dias p/ Vencer],\"<=30\")","v":0},{"$f":"COUNTIFS(tbContratos[Responsavel Interno],C25,tbContratos[Dias p/ Reajuste],\">=0\",tbContratos[Dias p/ Reajuste],\"<=30\")","v":0},null,4,"2026-12-01",{"$f":"COUNTIFS(tbContratos[Data Fim],\">=\"&I25,tbContratos[Data Fim],\"<\"&DATE(YEAR(I25),MONTH(I25)+1,1))","v":0},{"$f":"COUNTIFS(tbContratos[Prox. Reajuste],\">=\"&I25,tbContratos[Prox. Reajuste],\"<\"&DATE(YEAR(I25),MONTH(I25)+1,1))","v":0}]
[{"$nulls":7},5,"2027-01-01",{"$f":"COUNTIFS(tbContratos[Data Fim],\">=\"&I26,tbContratos[Data Fim],\"<\"&DATE(YEAR(I26),MONTH(I26)+1,1))","v":1},{"$f":"COUNTIFS(tbContratos[Prox. Reajuste],\">=\"&I26,tbContratos[Prox. Reajuste],\"<\"&DATE(YEAR(I26),MONTH(I26)+1,1))","v":0}]

{"sheet":"06_Relatorios","index":6,"n_rows":34,"n_cols":13,"rows_kept":34,"hidden":true}
{"$rows_empty":8}
[null,null,"PAINEL DE CONTROLE DE CONTRATOS"]
[]
[null,null,"Total Contratos",{"$f":"'05_Calculos'!D10","v":1},null,"Vigentes",{"$f":"'05_Calculos'!D11","v":1},null,"Vencidos",{"$f":"'05_Calculos'!D12","v":0},null,"Vencem 30d",{"$f":"'05_Calculos'!D13","v":0}]
[]
[null,null,"Reajustes 30d",{"$f":"'05_Calculos'!D14","v":0},null,"Avisos 15d",{"$f":"'05_Calculos'!D15","v":0},null,"Valor Total",{"$f":"'05_Calculos'!D16","v":{"v":120000,"d":"R$ 120,000.00"}},null,"Multa Est.",{"$f":"'05_Calculos'!D17","v":{"v":12000,"d":"R$ 12,000.00"}}]
{"$rows_empty":14}
[null,null,"RESUMO POR RESPONSAVEL",{"$nulls":4},"RESUMO POR TIPO DE PARTE"]
[null,null,"Responsavel","Contratos","Vencem 30d","Reajustes 30d",null,"Tipo","Contratos","Valor Total","Vencidos"]
[null,null,{"$f":"'05_Calculos'!C21","v":"Ana Silva"},{"$f":"'05_Calculos'!D21","v":1},{"$f":"'05_Calculos'!E21","v":0},{"$f":"'05_Calculos'!F21","v":0},null,{"$f":"'05_Calculos'!F10","v":"Cliente"},{"$f":"'05_Calculos'!G10","v":1},{"$f":"'05_Calculos'!H10","v":{"v":120000,"d":"R£ 120,000"}},{"$f":"'05_Calculos'!I10","v":0}]
[null,null,{"$f":"'05_Calculos'!C22","v":"Carlos Souza"},{"$f":"'05_Calculos'!D22","v":0},{"$f":"'05_Calculos'!E22","v":0},{"$f":"'05_Calculos'!F22","v":0},null,{"$f":"'05_Calculos'!F11","v":"Fornecedor"},{"$f":"'05_Calculos'!G11","v":0},{"$f":"'05_Calculos'!H11","v":{"v":0,"d":"R£ 0"}},{"$f":"'05_Calculos'!I11","v":0}]
[null,null,{"$f":"'05_Calculos'!C23","v":"Fernanda Lima"},{"$f":"'05_Calculos'!D23","v":0},{"$f":"'05_Calculos'!E23","v":0},{"$f":"'05_Calculos'!F23","v":0}]
[null,null,{"$f":"'05_Calculos'!C24","v":"Ricardo Alves"},{"$f":"'05_Calculos'!D24","v":0},{"$f":"'05_Calculos'!E24","v":0},{"$f":"'05_Calculos'!F24","v":0}]
[null,null,{"$f":"'05_Calculos'!C25","v":"Juliana Costa"},{"$f":"'05_Calculos'!D25","v":0},{"$f":"'05_Calculos'!E25","v":0},{"$f":"'05_Calculos'!F25","v":0}]